fUST/lending_fUST_20260320
["ID","MTS","AMOUNT","RATE_DAILY","PERIOD"]
[408620696,1773977450152,-637.06977791,6.849e-05,2]
[408620697,1773977450162,-353.57372674,6.849e-05,2]
[408620698,1773977450172,-12883.05378309,6.849e-05,2]
[408620699,1773977450182,-11626.95603924,6.849e-05,2]
[408620700,1773977450192,-10435.27356431,6.849e-05,2]
[408620701,1773977450201,-9308.00635829,6.849e-05,2]
[408620702,1773977450213,-8245.15442118,6.849e-05,2]
[408620703,1773977450223,-7246.71775299,6.849e-05,2]
[408620704,1773977450233,-6312.69635372,6.849e-05,2]
[408620705,1773977450243,-5443.09022336,6.849e-05,2]
[408620706,1773977450253,-4637.89936191,6.849e-05,2]
[408620707,1773977450263,-3897.12376939,6.849e-05,2]
[408620708,1773977450275,-3220.76344577,6.849e-05,2]
[408620709,1773977450284,-2608.81839108,6.849e-05,2]
[408620710,1773977450294,-2061.2886053,6.849e-05,2]
[408620711,1773977450304,-1578.17408843,6.849e-05,2]
[408620712,1773977450314,-1159.47484048,6.849e-05,2]
[408620713,1773977450325,-805.19086144,6.849e-05,2]
[408620714,1773977450335,-515.32215132,6.849e-05,2]
[408620715,1773977450345,-289.86871012,6.849e-05,2]
[408620716,1773977450359,-160.87713412,6.849e-05,2]
[408620717,1773977450370,-328.23467378,6.849e-05,2]
[408620718,1773977450380,-300.0,6.849e-05,2]
[408620719,1773977450391,-191.34065998,6.959e-05,60]
[408620720,1773977450402,-398.26,7e-05,2]
[408620721,1773977450412,-563.12,7.1e-05,2]
[408620722,1773977450423,-8134.94817581,7.187e-05,2]
[408620723,1773977451331,-28713.3650045,4.373e-05,2]
[408620724,1773977451417,-337.2,4.373e-05,2]
[408620725,1773977451432,-7366.51297338,4.373e-05,2]
[408620726,1773977451444,-9997.95176067,4.373e-05,2]
[408620727,1773977451456,-927.19930424,4.373e-05,2]
[408620761,1773978637915,-509.78971537,3.706e-05,2]
[408620762,1773978637925,-5000.0,3.806e-05,2]
[408620763,1773978637939,-1789.181724,3.845e-05,2]
[408620764,1773978637948,-1789.181724,4.007e-05,2]
[408620765,1773978637958,-1789.181724,4.168e-05,2]
[408620766,1773978637968,-57860.52434191,4.173e-05,2]
[408620767,1773978638019,-2717.80142687,4.173e-05,2]
[408620827,1773978643430,-652.25,4.173e-05,2]
[408620831,1773978646261,-2089.59287962,4.173e-05,2]
[408620833,1773979276336,181.720345,1.561e-05,2]
[408620835,1773979571951,-2886.59638285,2.272e-05,2]
[408620836,1773979571973,-5000.0,2.295e-05,2]
[408620837,1773979571996,-300.0,2.317e-05,2]
[408620838,1773979572017,-300.0,2.317e-05,2]
[408620839,1773979572039,-300.0,2.317e-05,2]
[408620840,1773979572061,-1200.0,2.317e-05,2]
[408620841,1773979572083,-1013.40361715,2.318e-05,2]
[408620842,1773979594848,-3986.59638285,2.318e-05,2]
[408620843,1773979594868,-181.720345,2.341e-05,2]
[408620844,1773979594892,-300.0,2.363e-05,2]
[408620845,1773979594914,-300.0,2.363e-05,2]
[408620846,1773979594936,-300.0,2.363e-05,2]
[408620847,1773979594960,-300.0,2.363e-05,2]
[408620848,1773979594981,-300.0,2.363e-05,2]
[408620849,1773979595004,-300.0,2.363e-05,2]
[408620850,1773979595027,-300.0,2.363e-05,2]
[408620851,1773979595049,-300.0,2.363e-05,2]
[408620852,1773979595072,-300.0,2.363e-05,2]
[408620853,1773979595094,-300.0,2.363e-05,2]
[408620854,1773979595116,-300.0,2.363e-05,2]
[408620855,1773979595140,-300.0,2.363e-05,2]
[408620856,1773979595164,-300.0,2.363e-05,2]
[408620857,1773979595185,-300.0,2.363e-05,2]
[408620858,1773979595208,-300.0,2.363e-05,2]
[408620859,1773979598073,3000.0,2.4e-05,2]
[408620860,1773979621376,-300.0,2.385e-05,2]
[408620861,1773979623374,-300.0,2.385e-05,2]
[408620862,1773979625257,-300.0,2.385e-05,2]
[408620863,1773979652691,-300.0,2.385e-05,2]
[408620864,1773979671136,727.61,8.4e-05,120]
[408620865,1773979717033,-1300.0,2.337e-05,2]
[408620866,1773979748916,-2700.0,2.337e-05,2]
[408620867,1773979748939,-1500.0,2.361e-05,2]
[408620868,1773979797100,-250.0,2.337e-05,2]
[408620869,1773979830857,-250.0,2.314e-05,2]
[408620948,1773979838061,-3829.955074,2.314e-05,2]
[408620967,1773979840735,-6.73750459,2.314e-05,2]
[408620989,1773979843248,-913.30742141,2.314e-05,2]
[408620990,1773979843259,-1200.0,2.336e-05,2]
[408620991,1773979843268,-450.06381925,2.337e-05,2]
[408621001,1773979846315,-3499.93618075,2.337e-05,2]
[408621002,1773979846325,-300.0,2.36e-05,2]
[408621003,1773979846335,-1071.77287102,2.361e-05,2]
[408621005,1773980174513,-300.0,2.268e-05,2]
[408621006,1773980176595,-300.0,2.268e-05,2]
[408621007,1773980178206,-300.0,2.268e-05,2]
[408621015,1773980468021,-2300.0,2.109e-05,2]
[408621016,1773980505500,-981.00797077,2.109e-05,2]
[408621017,1773980505524,-1615.336534,2.131e-05,2]
[408621018,1773980505547,-2403.65549523,2.201e-05,2]
[408621020,1773980534646,-2596.34450477,2.201e-05,2]
[408621021,1773980534669,-1615.336534,2.22e-05,2]
[408621022,1773980534691,-1200.0,2.244e-05,2]
[408621023,1773980538841,2988.31896123,2.3e-05,2]
[408621024,1773980554754,-800.0,2.277e-05,2]
[408621025,1773980568725,-46.63966687,2.277e-05,2]
[408621026,1773980568748,-2011.68103877,2.3e-05,2]
[408621027,1773980576659,2326.55528655,2.21e-05,2]
[408621028,1773980582742,515.12400781,2.3e-05,2]
[408621031,1773980786723,340.3624098,1.839e-05,2]
[408621033,1773980953145,-5000.0,2.178e-05,2]
[408621034,1773980953170,-302.73848456,2.2e-05,2]
[408621035,1773980953195,-731.54480798,2.31e-05,2]
[408621036,1773981024683,-1240.20366487,2.287e-05,2]
[408621135,1773981040779,-3759.79633513,2.287e-05,2]
[408621136,1773981040789,-883.79172602,2.31e-05,2]
[408621137,1773981040799,-1615.336534,2.4e-05,2]
[408621138,1773981040809,-1200.0,2.427e-05,2]
[408621139,1773981040819,-1087.0,2.428e-05,2]
[408621140,1773981040829,-300.0,2.428e-05,2]
[408621141,1773981040839,-300.0,2.432e-05,2]
[408621142,1773981040850,-300.0,2.432e-05,2]
[408621143,1773981040863,-300.0,2.432e-05,2]
[408621144,1773981040872,-300.0,2.432e-05,2]
[408621145,1773981040882,-300.0,2.432e-05,2]
[408621146,1773981040891,-300.0,2.432e-05,2]
[408621147,1773981040901,-300.0,2.432e-05,2]
[408621148,1773981040910,-300.0,2.432e-05,2]
[408621149,1773981040920,-300.0,2.432e-05,2]
[408621150,1773981040932,-300.0,2.432e-05,2]
[408621151,1773981040942,-300.0,2.432e-05,2]
[408621152,1773981040951,-300.0,2.432e-05,2]
[408621153,1773981040961,-300.0,2.432e-05,2]
[408621154,1773981040971,-300.0,2.432e-05,2]
[408621155,1773981040981,-300.0,2.432e-05,2]
[408621156,1773981040990,-500.07832869,2.44e-05,2]
[408621157,1773981040999,-279.9779495,2.48e-05,2]
[408621158,1773981041117,-133.76248111,2.48e-05,2]
[408621167,1773981043485,-186.25956939,2.48e-05,2]
[408621168,1773981043495,-1615.336534,2.489e-05,2]
[408621169,1773981043505,-653.78758795,2.579e-05,2]
[408621179,1773981046329,-961.54894605,2.579e-05,2]
[408621180,1773981046339,-301.76643095,2.67e-05,2]
[408621181,1773981046543,-1378.23356905,2.67e-05,2]
[408621182,1773981046554,-420.0,2.671e-05,2]
[408621183,1773981046564,-720.0,2.728e-05,2]
[408621184,1773981046573,-1101.0,2.937e-05,2]
[408621185,1773981046583,-587.0,2.938e-05,2]
[408621186,1773981046592,-864.0,3e-05,2]
[408621187,1773981046602,-181.720345,3.122e-05,2]
[408621188,1773981046612,-1000.0,3.3e-05,2]
[408621189,1773981046621,-5457.59957263,3.573e-05,2]
[408621190,1773981046633,-569.37999998,3.573e-05,2]
[408621191,1773981046644,-4132.80713712,3.573e-05,2]
[408621192,1773981046660,-74080.78942799,3.573e-05,2]
[408621193,1773981046670,-1000.0,3.63e-05,2]
[408621194,1773981046679,-244.0,3.63e-05,2]
[408621195,1773981046689,-143690.10888007,3.673e-05,2]
[408621196,1773981046698,-500.0,3.753e-05,2]
[408621197,1773981046709,-1000.0,3.993e-05,2]
[408621198,1773981046718,-492.0,3.993e-05,2]
[408621199,1773981046728,-1000.0,4.301e-05,2]
[408621200,1773981046738,-500.0,4.318e-05,2]
[408621201,1773981046747,-477.83213531,4.318e-05,2]
[408621202,1773981046757,-492.92460882,4.318e-05,2]
[408621203,1773981046768,-500.0,4.318e-05,2]
[408621204,1773981046778,-501.18803272,4.318e-05,2]
[408621205,1773981046787,-157.34,4.373e-05,2]
[408621206,1773981046797,-1000.0,4.393e-05,2]
[408621207,1773981046807,-791.0,4.393e-05,2]
[408621208,1773981046818,-183.0,4.495e-05,2]
[408621209,1773981046828,-438.0,4.495e-05,2]
[408621210,1773981046837,-200.0,4.574e-05,2]
[408621211,1773981046848,-150.0,4.725e-05,2]
[408621212,1773981046860,-1000.0,4.832e-05,2]
[408621213,1773981046870,-1000.0,4.832e-05,2]
[408621214,1773981046880,-1500.0,4.848e-05,2]
[408621215,1773981046889,-1000.0,4.866e-05,2]
[408621216,1773981046901,-1000.0,4.866e-05,2]
[408621217,1773981046912,-500.0,4.973e-05,2]
[408621218,1773981046921,-500.69505202,4.973e-05,2]
[408621219,1773981046933,-500.0,4.973e-05,2]
[408621220,1773981046943,-10469.9574915,5e-05,2]
[408621221,1773981046952,-25514.43430621,5e-05,2]
[408621222,1773981046962,-28046.00255251,5e-05,2]
[408621223,1773981046971,-22941.27551231,5e-05,2]
[408621224,1773981046981,-14770.89106919,5e-05,2]
[408621225,1773981046993,-892.54173738,5e-05,2]
[408621226,1773981047004,-4725.47918574,5e-05,2]
[408621227,1773981047014,-160.829761,5e-05,2]
[408621228,1773981047023,-182.85613898,5e-05,2]
[408621229,1773981047033,-184.68588757,5e-05,2]
[408621230,1773981047044,-178.96302628,5e-05,2]
[408621231,1773981047053,-1000.0,5.315e-05,2]
[408621232,1773981047063,-1000.0,5.315e-05,2]
[408621233,1773981047073,-579.0,5.315e-05,2]
[408621234,1773981047083,-1355.48652723,5.396e-05,2]
[408621235,1773981047094,-1500.0,5.414e-05,2]
[408621236,1773981047103,-582.6994732,5.414e-05,2]
[408621240,1773981786544,191.590741,1.838e-05,2]
[408621786,1773982238630,-823.74466461,2.331e-05,2]
[408621787,1773982238737,-2714.28142687,2.331e-05,2]
[408621867,1773982243572,-27.56228646,2.331e-05,2]
[408621868,1773982243705,-1434.41162206,2.331e-05,2]
[408621869,1773982243716,-1242.65643815,2.355e-05,2]
[408621870,1773982243726,-191.590741,2.451e-05,2]
[408621871,1773982243735,-191.590741,3.064e-05,2]
[408621872,1773982243746,-191.590741,3.677e-05,2]
[408621873,1773982243755,-300.0,4.037e-05,2]
[408621874,1773982243765,-1200.0,4.037e-05,2]
[408621875,1773982243775,-2573.4684777,4.038e-05,2]
[408621876,1773982243786,-289.94,4.071e-05,2]
[408621877,1773982243796,-176.665,4.112e-05,2]
[408621878,1773982243806,-300.0,4.151e-05,2]
[408621879,1773982243815,-300.0,4.151e-05,2]
[408621880,1773982243826,-300.0,4.151e-05,2]
[408621881,1773982243836,-300.0,4.151e-05,2]
[408621882,1773982243846,-300.0,4.151e-05,2]
[408621883,1773982243855,-300.0,4.151e-05,2]
[408621884,1773982243865,-300.0,4.151e-05,2]
[408621886,1773982243875,-300.0,4.151e-05,2]
[408621888,1773982243884,-300.0,4.151e-05,2]
[408621890,1773982243894,-300.0,4.151e-05,2]
[408621893,1773982243904,-300.0,4.151e-05,2]
[408621896,1773982243913,-300.0,4.151e-05,2]
[408621898,1773982243923,-300.0,4.151e-05,2]
[408621900,1773982243932,-300.0,4.151e-05,2]
[408621902,1773982243943,-32.92529332,4.151e-05,2]
[408621904,1773982243955,-267.07470668,4.151e-05,2]
[408621906,1773982243965,-500.0,4.16e-05,2]
[408621907,1773982243974,-500.0,4.16e-05,2]
[408621908,1773982243984,-500.0,4.16e-05,2]
[408621909,1773982243994,-298.0,4.441e-05,2]
[408621911,1773982244004,-169.2795372,4.496e-05,2]
[408621912,1773982244013,-183.0,4.586e-05,2]
[408621913,1773982244023,-438.0,4.586e-05,2]
[408621914,1773982244033,-1000.0,4.708e-05,2]
[408621915,1773982244042,-1000.0,4.708e-05,2]
[408621916,1773982244052,-463.73974134,4.77e-05,2]
[408621952,1773982246811,-136.26025866,4.77e-05,2]
[408621954,1773982246821,-15952.07605475,5.179e-05,2]
[408621956,1773982246832,-13625.7598826,5.179e-05,2]
[408621987,1773982811254,250.0,3.836e-05,10]
[408621988,1773982823628,-2359.44813638,3.836e-05,10]
[408622016,1773983438319,-1017.99879645,3.685e-05,2]
[408622017,1773983438334,-1813.27688355,3.722e-05,2]
[408622129,1773983445896,-3186.72311645,3.722e-05,2]
[408622130,1773983445910,-300.0,3.835e-05,2]
[408622131,1773983445923,-2433.78749149,3.836e-05,10]
[408622153,1773984631809,-5000.0,3.263e-05,2]
[408622154,1773984631820,-275.0,3.503e-05,2]
[408622155,1773984631836,-451.19046494,3.836e-05,10]
[408622177,1773984637964,-4505.57390719,3.836e-05,10]
[408622178,1773984637974,-551.7,3.836e-05,2]
[408622179,1773984637985,-250.0,4.355e-05,2]
[408622180,1773984637995,-500.0,4.405e-05,2]
[408622181,1773984638006,-500.0,4.405e-05,2]
[408622182,1773984638016,-207.0512508,4.47e-05,2]
[408622184,1773984638026,-183.0,4.56e-05,2]
[408622186,1773984638036,-438.0,4.56e-05,2]
[408622188,1773984638046,-26089.75757228,4.579e-05,2]
[408622189,1773984638058,-26795.18615433,4.579e-05,2]
[408622207,1773984642965,-4111.32773825,4.579e-05,2]
[408622208,1773984642978,-1275.38190145,4.579e-05,2]
[408622209,1773984643024,-1888.90328211,4.579e-05,2]
[408622216,1773984646143,-8507.22612196,4.579e-05,2]
[408622217,1773984646155,-8610.99485752,4.579e-05,2]
[408622230,1773985451186,8000.0,7e-05,120]
[408622244,1773985831968,-176.19316577,3.759e-05,2]
[408622245,1773985831979,-194.81183423,3.769e-05,2]
[408622309,1773985840452,-4280.0,3.769e-05,2]
[408622323,1773985846321,-525.18816577,3.769e-05,2]
[408622324,1773985846332,-195.729864,3.883e-05,2]
[408622325,1773985846343,-195.729864,4.156e-05,2]
[408622326,1773985846353,-300.0,4.378e-05,2]
[408622327,1773985846363,-4430.50231327,4.379e-05,2]
[408622328,1773985846379,-9617.13259532,4.379e-05,2]
[408622362,1773987032257,-3283.2454908,3.275e-05,2]
[408622363,1773987032271,-434.44183182,3.275e-05,2]
[408622379,1773987038332,-1282.31267738,3.275e-05,2]
[408622380,1773987038343,-2785.96305814,3.308e-05,2]
[408622381,1773987038354,-209.13292701,3.745e-05,2]
[408622382,1773987038365,-491.0,4.177e-05,2]
[408622383,1773987038376,-300.0,4.178e-05,2]
[408622384,1773987038387,-34925.71267066,4.179e-05,2]
[408622385,1773987038397,-54280.7922281,4.179e-05,2]
[408622449,1773987046464,-23388.50000001,4.179e-05,2]
[408622450,1773987046524,-1541.66666667,4.179e-05,2]
[408622452,1773987970419,2000.0,3e-05,10]
[408622453,1773987985907,108.409259,2.002e-05,2]
[408622454,1773987985933,300.0,2.002e-05,2]
[408622455,1773987985961,300.0,2.002e-05,2]
[408622456,1773987998836,5000.0,2e-05,2]
[408622457,1773988021462,1781.51969057,2e-05,2]
[408622458,1773988029503,2000.0,2e-05,2]
[408622459,1773988037370,3025.46792772,2e-05,2]
[408622462,1773988215498,4527.55831042,2e-05,2]
[408622463,1773988223166,1017.99879645,2e-05,2]
[408622520,1773988240900,-217.660741,2.002e-05,2]
[408622522,1773988240910,-241.68689094,2.497e-05,2]
[408622571,1773988246684,-8.31310906,2.497e-05,2]
[408622572,1773988246694,-300.0,3.878e-05,2]
[408622573,1773988246704,-14271.04353292,3.879e-05,2]
[408622721,1773989431669,-500.35842512,3.37e-05,2]
[408622722,1773989431680,-500.19267523,3.753e-05,2]
[408622723,1773989431691,-229.13887075,3.853e-05,2]
[408622724,1773989431701,-200.0,4e-05,2]
[408622725,1773989431711,-300.0,4.158e-05,2]
[408622726,1773989431722,-1200.0,4.158e-05,2]
[408622727,1773989431733,-300.0,4.159e-05,2]
[408622728,1773989431743,-300.0,4.159e-05,2]
[408622729,1773989431755,-300.0,4.159e-05,2]
[408622730,1773989431770,-300.0,4.159e-05,2]
[408622731,1773989431780,-300.0,4.159e-05,2]
[408622732,1773989431790,-300.0,4.159e-05,2]
[408622733,1773989431800,-300.0,4.159e-05,2]
[408622734,1773989431809,-300.0,4.159e-05,2]
[408622735,1773989431820,-300.0,4.159e-05,2]
[408622736,1773989431830,-300.0,4.159e-05,2]
[408622737,1773989431840,-300.0,4.159e-05,2]
[408622738,1773989431851,-300.0,4.159e-05,2]
[408622739,1773989431860,-300.0,4.159e-05,2]
[408622741,1773989431871,-300.0,4.159e-05,2]
[408622743,1773989431882,-300.0,4.159e-05,2]
[408622745,1773989431892,-600.0,4.159e-05,2]
[408622747,1773989431902,-151.0,4.159e-05,2]
[408622749,1773989431912,-176.6650001,4.261e-05,2]
[408622751,1773989431922,-413.5454649,4.261e-05,2]
[408622753,1773989431933,-500.0,4.414e-05,2]
[408622755,1773989431943,-77.33304679,4.414e-05,2]
[408622757,1773989431955,-422.66695321,4.414e-05,2]
[408622759,1773989431965,-177.39,4.414e-05,2]
[408622761,1773989431975,-519.6602924,4.428e-05,2]
[408622764,1773989431987,-3061.15593286,4.428e-05,2]
[408622798,1773989437565,-2814.11279125,4.428e-05,2]
[408622799,1773989437575,-195.729864,4.428e-05,2]
[408622801,1773989437585,-438.0,4.463e-05,2]
[408622803,1773989437595,-183.0,4.463e-05,2]
[408622805,1773989437605,-500.0,4.543e-05,2]
[408622807,1773989437615,-500.56204057,4.557e-05,2]
[408622809,1773989437625,-500.26773417,4.557e-05,2]
[408622811,1773989437635,-376.0,4.574e-05,2]
[408622813,1773989437646,-720.0,4.575e-05,2]
[408622815,1773989437655,-195.729864,4.701e-05,2]
[408622817,1773989437665,-413.5454649,4.901e-05,2]
[408622819,1773989437675,-2772.76421902,5e-05,2]
[408622821,1773989437685,-864.0,5.033e-05,2]
[408622823,1773989437695,-500.0,5.12e-05,2]
[408622825,1773989437709,-537.6845,5.142e-05,2]
[408622827,1773989437727,-537.6845,5.142e-05,2]
[408622829,1773989437749,-2150.738,5.142e-05,2]
[408622831,1773989437760,-557.5788265,5.197e-05,2]
[408622834,1773989437771,-160.0,5.2e-05,2]
[408622836,1773989437783,-160.0,5.2e-05,2]
[408622838,1773989437792,-500.0,5.235e-05,2]
[408622840,1773989437804,-500.0,5.235e-05,2]
[408622842,1773989437816,-500.0,5.235e-05,2]
[408622844,1773989437827,-578.20924308,5.252e-05,2]
[408622846,1773989437839,-599.60298507,5.307e-05,2]
[408622848,1773989437848,-500.0,5.328e-05,2]
[408622850,1773989437859,-500.0,5.328e-05,2]
[408622852,1773989437871,-500.0,5.328e-05,2]
[408622854,1773989437883,-152.76355866,5.328e-05,2]
[408622856,1773989437895,-500.0,5.328e-05,2]
[408622858,1773989437906,-500.0,5.328e-05,2]
[408622860,1773989437918,-211.25643265,5.328e-05,2]
[408622862,1773989437929,-500.0,5.328e-05,2]
[408622864,1773989437938,-558.38115883,5.328e-05,2]
[408622866,1773989437950,-500.0,5.328e-05,2]
[408622868,1773989437961,-500.0,5.328e-05,2]
[408622870,1773989437972,-500.0,5.328e-05,2]
[408622873,1773989437983,-500.0,5.328e-05,2]
[408622874,1773989437995,-500.0,5.328e-05,2]
[408622877,1773989438006,-500.0,5.328e-05,2]
[408622879,1773989438017,-500.0,5.328e-05,2]
[408622880,1773989438028,-500.0,5.328e-05,2]
[408622882,1773989438038,-500.0,5.328e-05,2]
[408622885,1773989438051,-500.0,5.328e-05,2]
[408622886,1773989438061,-500.0,5.328e-05,2]
[408622888,1773989438073,-500.0,5.328e-05,2]
[408622891,1773989438085,-293.80123615,5.328e-05,2]
[408622892,1773989438097,-5622.18707426,5.329e-05,2]
[408622894,1773989438109,-621.78829552,5.362e-05,2]
[408622896,1773989438120,-644.79446246,5.417e-05,2]
[408622897,1773989438132,-668.65185757,5.472e-05,2]
[408622898,1773989438142,-500.0,5.479e-05,2]
[408622899,1773989438151,-458.55031851,5.479e-05,2]
[408622900,1773989438163,-300.0,5.479e-05,2]
[408622901,1773989438174,-195.603184,5.479e-05,2]
[408622902,1773989438185,-195.603184,5.479e-05,2]
[408622903,1773989438195,-195.603184,5.479e-05,2]
[408622904,1773989438205,-195.603184,5.479e-05,2]
[408622905,1773989438214,-195.603184,5.479e-05,2]
[408622906,1773989438224,-195.603184,5.479e-05,2]
[408622907,1773989438234,-195.603184,5.479e-05,2]
[408622908,1773989438246,-195.603184,5.479e-05,2]
[408622909,1773989438256,-195.603184,5.479e-05,2]
[408622910,1773989438266,-195.603184,5.479e-05,2]
[408622911,1773989438276,-195.603184,5.479e-05,2]
[408622912,1773989438285,-195.603184,5.479e-05,2]
[408622913,1773989438296,-195.603184,5.479e-05,2]
[408622914,1773989438306,-195.603184,5.479e-05,2]
[408622915,1773989438316,-195.603184,5.479e-05,2]
[408622916,1773989438326,-195.603184,5.479e-05,2]
[408622917,1773989438337,-195.603184,5.479e-05,2]
[408622918,1773989438346,-195.603184,5.479e-05,2]
[408622919,1773989438356,-195.603184,5.479e-05,2]
[408622920,1773989438369,-195.603179,5.479e-05,2]
[408622921,1773989438383,-151.0,5.479e-05,2]
[408622922,1773989438393,-151.0,5.479e-05,2]
[408622923,1773989438407,-151.0,5.479e-05,2]
[408622924,1773989438419,-151.0,5.479e-05,2]
[408622925,1773989438429,-151.0,5.479e-05,2]
[408622926,1773989438439,-151.0,5.479e-05,2]
[408622927,1773989438450,-151.0,5.479e-05,2]
[408622928,1773989438460,-151.0,5.479e-05,2]
[408622929,1773989438470,-151.0,5.479e-05,2]
[408622930,1773989438481,-151.0,5.479e-05,2]
[408622931,1773989438490,-151.0,5.479e-05,2]
[408622932,1773989438501,-151.0,5.479e-05,2]
[408622933,1773989438511,-151.0,5.479e-05,2]
[408622934,1773989438520,-151.0,5.479e-05,2]
[408622935,1773989438530,-151.0,5.479e-05,2]
[408622936,1773989438540,-151.0,5.479e-05,2]
[408622937,1773989438550,-151.0,5.479e-05,2]
[408622938,1773989438560,-252.740098,5.479e-05,2]
[408622939,1773989438570,-151.0,5.479e-05,2]
[408622940,1773989438579,-151.0,5.479e-05,2]
[408622941,1773989438590,-151.0,5.479e-05,2]
[408622942,1773989438600,-151.0,5.479e-05,2]
[408622943,1773989438610,-151.0,5.479e-05,2]
[408622944,1773989438619,-151.0,5.479e-05,2]
[408622945,1773989438629,-151.0,5.479e-05,2]
[408622946,1773989438639,-151.0,5.479e-05,2]
[408622947,1773989438649,-300.327866,5.479e-05,2]
[408622948,1773989438659,-301.073883,5.479e-05,2]
[408622949,1773989438669,-151.0,5.479e-05,2]
[408622950,1773989438679,-151.0,5.479e-05,2]
[408622951,1773989438688,-151.0,5.479e-05,2]
[408622952,1773989438698,-151.0,5.479e-05,2]
[408622953,1773989438708,-151.0,5.479e-05,2]
[408622954,1773989438718,-154.783221,5.479e-05,2]
[408622955,1773989438728,-337.401159,5.479e-05,2]
[408622956,1773989438737,-337.401159,5.479e-05,2]
[408622957,1773989438747,-337.401159,5.479e-05,2]
[408622958,1773989438757,-337.401159,5.479e-05,2]
[408622959,1773989438768,-337.401159,5.479e-05,2]
[408622960,1773989438777,-337.401159,5.479e-05,2]
[408622961,1773989438787,-337.401159,5.479e-05,2]
[408622962,1773989438797,-337.401159,5.479e-05,2]
[408622963,1773989438806,-337.401159,5.479e-05,2]
[408622964,1773989438816,-337.401159,5.479e-05,2]
[408622965,1773989438826,-337.401159,5.479e-05,2]
[408622966,1773989438835,-337.401159,5.479e-05,2]
[408622967,1773989438845,-337.401159,5.479e-05,2]
[408622968,1773989438855,-337.401159,5.479e-05,2]
[408622969,1773989438865,-337.401159,5.479e-05,2]
[408622970,1773989438875,-337.401159,5.479e-05,2]
[408622971,1773989438886,-337.401159,5.479e-05,2]
[408622972,1773989438895,-337.401159,5.479e-05,2]
[408622973,1773989438906,-337.401159,5.479e-05,2]
[408622974,1773989438916,-337.401154,5.479e-05,2]
[408622975,1773989438926,-1000.0,5.5e-05,2]
[408622976,1773989438936,-1000.0,5.5e-05,2]
[408622977,1773989438946,-1000.0,5.5e-05,2]
[408622978,1773989438956,-1000.0,5.5e-05,2]
[408622979,1773989438966,-1000.0,5.5e-05,2]
[408622980,1773989438976,-693.3919763,5.527e-05,2]
[408622981,1773989438986,-1000.0,5.536e-05,2]
[408622982,1773989438996,-413.5454649,5.54e-05,2]
[408622983,1773989439005,-719.04747942,5.582e-05,2]
[408622984,1773989439015,-745.65223616,5.637e-05,2]
[408622985,1773989439025,-8471.6099295,5.658e-05,2]
[408622986,1773989439035,-1000.0,5.668e-05,2]
[408622987,1773989439045,-557.5788265,5.69e-05,2]
[408622988,1773989439055,-2230.315306,5.69e-05,2]
[408622989,1773989439064,-773.2413689,5.692e-05,2]
[408622990,1773989439074,-801.85129955,5.747e-05,2]
[408622991,1773989439084,-1000.0,5.783e-05,2]
[408622992,1773989439095,-1080.67275229,5.783e-05,2]
[408622993,1773989439104,-831.51979763,5.802e-05,2]
[408622994,1773989439114,-160.0,5.974e-05,5]
[408622995,1773989439124,-8764.50190933,5.986e-05,2]
[408622996,1773989439134,-438.1010503,6e-05,2]
[408622997,1773989439143,-1000.0,6.09e-05,2]
[408622998,1773989439153,-244.0,6.09e-05,2]
[408622999,1773989439162,-413.5454649,6.18e-05,2]
[408623000,1773989439172,-1500.0,6.216e-05,2]
[408623001,1773989439181,-578.20924308,6.238e-05,2]
[408623002,1773989439191,-2312.83697232,6.238e-05,2]
[408623003,1773989439201,-10551.21341628,6.315e-05,2]
[408623004,1773989439210,-1500.0,6.331e-05,2]
[408623005,1773989439220,-981.31586418,6.644e-05,2]
[408623008,1773989439560,-941.81791522,6.644e-05,2]
[408623009,1773989439573,-9397.89900534,6.644e-05,2]
[408623010,1773989439584,-1000.0,6.699e-05,2]
[408623011,1773989439594,-492.0,6.699e-05,2]
[408623012,1773989439604,-2000.0,6.764e-05,2]
[408623013,1773989439614,-599.60298507,6.786e-05,2]
[408623014,1773989439623,-2398.4119403,6.786e-05,2]
[408623015,1773989439633,-160.0,6.8e-05,2]
[408623016,1773989439643,-157.0,6.8e-05,2]
[408623017,1773989439653,-157.0,6.8e-05,2]
[408623018,1773989439663,-151.871213,6.822e-05,2]
[408623019,1773989439672,-2000.0,6.879e-05,2]
[408623020,1773989439682,-159.0,7e-05,2]
[408623022,1773989439692,-946.77446908,7.043e-05,2]
[408623023,1773989439702,-324.6145371,7.112e-05,2]